bitfinex/quotes_BTCUSD_20250829
["timestamp","ask_amount","ask_price","bid_price","bid_amount"]
[1756454375395,0.96708973,110210.0,110180.0,0.19074053]
[1756454375396,2.00659662,110210.0,110180.0,0.19074053]
[1756454375618,0.23863737,110190.0,110180.0,0.19074053]
[1756454375794,0.26647411,110190.0,110180.0,0.19275053]
[1756454376001,0.26647411,110190.0,110180.0,0.19571053]
[1756454376208,0.27277527,110190.0,110180.0,0.19571053]
[1756454376910,0.27277527,110190.0,110180.0,0.19671053]
[1756454377207,0.27277527,110190.0,110180.0,0.19571053]
[1756454377435,0.27277527,110190.0,110180.0,0.19871053]
[1756454377607,0.27277527,110190.0,110180.0,0.20171053]
[1756454378354,0.0912706,110190.0,110180.0,0.20171053]
[1756454379734,0.05232218,110190.0,110180.0,0.20171053]
[1756454381761,0.23382685,110190.0,110180.0,0.19875053]
[1756454382139,0.24012812,110190.0,110180.0,0.19875053]
[1756454382344,0.24013236,110190.0,110180.0,0.19875053]
[1756454382492,0.23383109,110190.0,110180.0,0.36259053]
[1756454382657,0.23583109,110190.0,110180.0,0.19875053]
[1756454382857,0.23583109,110190.0,110180.0,0.36255053]
[1756454383096,0.2401322,110190.0,110180.0,0.36255053]
[1756454383309,1.2705492,110190.0,110180.0,0.36255053]
[1756454384114,1.2705492,110190.0,110180.0,0.36551053]
[1756454384353,0.05232642,110190.0,110180.0,0.36551053]
[1756454384556,0.05232642,110190.0,110180.0,0.42112285]
[1756454384763,0.05232642,110190.0,110180.0,0.36551053]
[1756454384985,0.05232642,110190.0,110180.0,1.48422385]
[1756454384986,0.02784098,110190.0,110180.0,1.48422385]
[1756454385715,0.02785563,110190.0,110180.0,1.48422385]
[1756454386323,0.02785563,110190.0,110180.0,0.45380685]
[1756454386521,0.02785563,110190.0,110180.0,1.48422385]
[1756454386722,0.0571327,110210.0,110180.0,1.57252017]
[1756454386944,0.05250441,110210.0,110200.0,0.1814882]
[1756454387147,0.05250441,110210.0,110200.0,0.3500982]
[1756454387636,0.02801897,110210.0,110200.0,0.3500982]
[1756454387836,0.02801897,110210.0,110200.0,0.36067677]
[1756454389438,0.02801897,110210.0,110200.0,0.44897309]
[1756454389645,0.0084177,110210.0,110200.0,1.47939009]
[1756454389843,0.0084177,110210.0,110200.0,1.48039009]
[1756454390056,0.09511626,110230.0,110220.0,0.18145527]
[1756454390256,0.09863223,110230.0,110220.0,0.34709527]
[1756454390473,0.09863223,110230.0,110220.0,0.40342656]
[1756454390880,0.09863223,110230.0,110220.0,0.40026656]
[1756454391270,0.09963223,110230.0,110220.0,0.40041]
[1756454391696,0.02900141,110230.0,110220.0,0.40041]
[1756454391871,0.02900141,110230.0,110220.0,0.40357]
[1756454392077,0.02900141,110230.0,110220.0,0.51280514]
[1756454392278,0.00941171,110230.0,110220.0,1.54322214]
[1756454392498,0.001,110230.0,110220.0,1.54322214]
[1756454392704,0.001,110230.0,110220.0,1.88322214]
[1756454393107,0.0004,110250.0,110240.0,0.18142235]
[1756454393280,0.0004,110250.0,110240.0,0.4680837]
[1756454393513,0.0004,110250.0,110240.0,0.4733637]
[1756454393708,0.00879641,110250.0,110240.0,0.4733637]
[1756454394477,0.00879641,110250.0,110240.0,0.4763637]
[1756454395542,0.00879641,110250.0,110240.0,1.5067807]
[1756454396096,0.00878378,110250.0,110240.0,0.3131237]
[1756454396378,0.0004,110250.0,110240.0,0.4731237]
[1756454396986,1.22567289,110250.0,110240.0,0.34750235]
[1756454397603,1.22567289,110250.0,110240.0,0.16408]
[1756454398008,1.22567289,110250.0,110240.0,0.16308]
[1756454398656,1.22567289,110250.0,110240.0,0.16408]
[1756454398822,1.22567289,110250.0,110240.0,0.001]
[1756454399166,1.67345187,110250.0,110240.0,0.001]
[1756454399886,0.18143318,110240.0,110220.0,0.35354864]
[1756454400083,0.00507,110230.0,110220.0,0.35354864]
[1756454400284,0.00507,110230.0,110220.0,0.35566864]
[1756454400506,0.00507,110230.0,110220.0,0.19066864]
[1756454400507,1.2169258,110230.0,110220.0,0.19066864]
[1756454400709,0.1835488,110230.0,110220.0,0.39272126]
[1756454400914,0.1865088,110230.0,110220.0,0.39268126]
[1756454401120,0.1865088,110230.0,110220.0,0.3814885]
[1756454401342,0.1865088,110230.0,110220.0,0.16282344]
[1756454401343,1.2169258,110230.0,110220.0,0.16282344]
[1756454401514,1.02565659,110230.0,110220.0,0.16282344]
[1756454401866,0.1835488,110230.0,110220.0,0.16594344]
[1756454402093,0.1835488,110230.0,110220.0,0.16382344]
[1756454402241,1.2139658,110230.0,110220.0,0.16366344]
[1756454402454,1.2139658,110230.0,110220.0,0.00114344]
[1756454403003,1.2223399,110230.0,110220.0,0.00114344]
[1756454403439,1.75183376,110230.0,110220.0,0.00114344]
[1756454403652,1.78056404,110230.0,110220.0,0.00114344]
[1756454404062,0.6489495,110230.0,110220.0,0.00014344]
[1756454404272,1.6793665,110230.0,110220.0,0.00014344]
[1756454404693,0.0083741,110230.0,110220.0,0.34931871]
[1756454404905,0.1814388,110230.0,110220.0,0.00542344]
[1756454405137,0.1835488,110230.0,110220.0,0.34931871]
[1756454405335,1.2159658,110230.0,110220.0,0.16470344]
[1756454405537,1.2159658,110230.0,110220.0,0.18371871]
[1756454405780,0.1855488,110230.0,110220.0,0.34619871]
[1756454406216,0.002,110230.0,110220.0,0.34935871]
[1756454406427,1.21183935,110240.0,110230.0,0.1814388]
[1756454406629,0.18353235,110240.0,110220.0,0.22448787]
[1756454406836,1.21394935,110240.0,110230.0,0.00212]
[1756454407389,0.18353235,110240.0,110230.0,0.00212]
[1756454407761,0.1814388,110230.0,110220.0,0.34709045]
[1756454407963,0.1814388,110230.0,110220.0,0.34921045]
[1756454408181,1.18932711,110240.0,110220.0,0.40297377]
[1756454408402,0.00211,110230.0,110220.0,0.40297377]
[1756454408621,0.00211,110230.0,110220.0,0.34921045]
[1756454408834,0.1835488,110230.0,110220.0,0.34605045]
[1756454409040,0.00211,110230.0,110220.0,0.34921045]
[1756454409451,0.1835488,110230.0,110220.0,0.34605045]
[1756454409661,0.00211,110230.0,110220.0,0.34605045]
[1756454409860,0.00211,110230.0,110220.0,0.35021045]
[1756454410073,1.00790476,110240.0,110230.0,0.1814388]
[1756454410375,0.18649235,110240.0,110230.0,0.1814388]
[1756454410585,0.00211,110240.0,110230.0,0.1835588]
[1756454410787,0.18353235,110240.0,110230.0,0.1835588]
[1756454410988,1.19981448,110240.0,110220.0,0.34809045]
[1756454411197,1.19685448,110240.0,110230.0,0.1835588]
[1756454411358,1.19685448,110240.0,110230.0,0.00212]
[1756454411572,0.19190972,110240.0,110230.0,0.1835588]
[1756454411773,0.19486972,110240.0,110230.0,0.1835588]
[1756454412734,0.19586972,110240.0,110230.0,0.1835588]
[1756454412891,1.20081448,110240.0,110230.0,0.1835588]
[1756454413073,0.19586972,110240.0,110230.0,0.1835588]
[1756454413279,0.19290972,110240.0,110230.0,0.1835588]
[1756454413498,0.001,110240.0,110230.0,0.23978373]
[1756454413692,0.001,110240.0,110230.0,1.33302481]
[1756454413917,0.001,110240.0,110230.0,0.32808005]
[1756454414556,0.001,110240.0,110230.0,1.35396363]
[1756454415300,0.001,110240.0,110230.0,0.34901887]
[1756454415978,0.0004,110250.0,110240.0,0.18142235]
[1756454416167,0.0004,110250.0,110240.0,0.31868863]
[1756454416348,0.0004,110250.0,110240.0,0.32080863]
[1756454416752,0.0004,110250.0,110240.0,0.48412863]
[1756454416919,0.0004,110250.0,110240.0,0.48416863]
[1756454417359,0.0004,110250.0,110240.0,0.48516863]
[1756454417558,0.0004,110250.0,110240.0,0.48616863]
[1756454417754,0.01385884,110250.0,110240.0,0.34678235]
[1756454417974,0.01089884,110250.0,110240.0,0.34890235]
[1756454418953,0.19230473,110250.0,110240.0,0.16536]
[1756454419155,1.20045949,110250.0,110240.0,0.002]
[1756454419467,1.28875551,110250.0,110240.0,0.002]
[1756454419962,1.28875551,110250.0,110240.0,0.001]
[1756454420169,0.18142235,110240.0,110230.0,0.1814388]
[1756454420368,0.1814388,110230.0,110220.0,0.19052321]
[1756454420566,0.0105175,110230.0,110220.0,0.35583321]
[1756454420776,0.0105175,110230.0,110220.0,0.19251321]
[1756454420994,0.0105175,110230.0,110220.0,0.35579321]
[1756454421667,0.0105175,110230.0,110220.0,0.35886321]
[1756454421840,0.0105175,110230.0,110220.0,0.35575321]
[1756454422139,0.1951663,110230.0,110220.0,0.35376321]
[1756454422494,0.1919563,110230.0,110220.0,0.35575321]
[1756454422843,0.1919563,110230.0,110220.0,0.35476321]
[1756454423088,0.1951663,110230.0,110220.0,0.35476321]
[1756454423291,0.0137275,110230.0,110220.0,0.35576321]
[1756454423418,0.0105175,110230.0,110220.0,0.35775321]
[1756454424029,0.0083875,110230.0,110220.0,0.41288981]
[1756454424270,0.18463311,110240.0,110230.0,0.1814388]
[1756454424474,0.18982182,110240.0,110230.0,0.1814388]
[1756454424678,0.19195182,110240.0,110230.0,0.1834288]
[1756454425198,0.21150841,110240.0,110230.0,0.1834288]
[1756454426240,0.00839871,110240.0,110230.0,0.24613866]
[1756454426447,0.0004,110250.0,110240.0,0.18142235]
[1756454426656,0.00879454,110250.0,110240.0,0.34761235]
[1756454426862,0.00879454,110250.0,110240.0,0.34960235]
[1756454427891,0.00879454,110250.0,110240.0,0.18648235]
[1756454428109,0.00879454,110250.0,110240.0,0.22571738]
[1756454428332,0.00879454,110250.0,110240.0,0.3140137]
[1756454428551,0.0004,110250.0,110240.0,1.48191846]
[1756454429274,0.0004,110250.0,110240.0,1.48591846]
[1756454429484,0.0004,110250.0,110240.0,1.32295846]
[1756454429700,0.0004,110250.0,110240.0,0.4809737]
[1756454429888,0.0004,110250.0,110240.0,0.4769337]
[1756454430090,0.0004,110250.0,110240.0,0.4799337]
[1756454430839,0.0004,110250.0,110240.0,0.3170137]
[1756454431062,0.0004,110250.0,110240.0,0.4798137]
[1756454431287,0.0004,110250.0,110240.0,0.3200137]
[1756454431491,0.0004,110250.0,110240.0,0.4828137]
[1756454431893,0.0004,110250.0,110240.0,0.3200137]
[1756454432109,0.0004,110250.0,110240.0,1.48775846]
[1756454432328,0.0004,110250.0,110240.0,1.32495846]
[1756454432629,0.0004,110250.0,110240.0,0.4827337]
[1756454435800,0.0004,110250.0,110240.0,1.48767846]
[1756454436668,0.0004,110250.0,110240.0,1.91837728]
[1756454437856,1e-08,110250.0,110240.0,1.91837728]
[1756454438527,1e-08,110250.0,110240.0,1.91537728]
[1756454438771,1e-08,110250.0,110240.0,1.91237728]
[1756454439186,1e-08,110250.0,110240.0,1.91837728]
[1756454439397,1e-08,110250.0,110240.0,1.92337728]
[1756454439772,1e-08,110250.0,110240.0,1.91837728]
[1756454440165,1e-08,110250.0,110240.0,1.92437728]
[1756454440917,1e-08,110250.0,110240.0,2.92932204]
[1756454441336,1e-08,110250.0,110240.0,2.97332204]
[1756454441671,1e-08,110250.0,110240.0,3.02332204]
[1756454442113,1e-08,110250.0,110240.0,3.02732204]
[1756454442795,1e-08,110250.0,110240.0,3.42732204]
[1756454443107,1e-08,110250.0,110240.0,3.52294204]
[1756454443455,1e-08,110250.0,110240.0,3.42732204]
[1756454444259,1e-08,110250.0,110240.0,3.57732204]
[1756454445655,1e-08,110250.0,110240.0,3.59551204]
[1756454445815,1e-08,110250.0,110240.0,7.56722804]
[1756454446033,1e-08,110250.0,110240.0,8.02886804]
[1756454446262,1e-08,110250.0,110240.0,8.02286804]
[1756454446439,1e-08,110250.0,110240.0,8.01886804]
[1756454446839,0.0004,110320.0,110310.0,0.52130722]
[1756454447040,0.0004,110320.0,110310.0,1.83622816]
[1756454447243,0.0004,110330.0,110320.0,0.18129079]
[1756454447587,0.0004,110330.0,110320.0,0.61464711]
[1756454447785,0.0004,110330.0,110320.0,1.61959187]
[1756454448131,0.00044776,110330.0,110320.0,0.61464711]
[1756454448344,0.00044776,110330.0,110320.0,1.6588269]
[1756454448917,0.00361,110350.0,110340.0,0.18125793]
[1756454449137,0.00881698,110350.0,110340.0,1.45907783]
[1756454449348,0.00881698,110350.0,110340.0,1.46106783]
[1756454449349,0.01085698,110350.0,110340.0,1.46106783]
[1756454449506,0.01386698,110350.0,110340.0,1.51871769]
[1756454451520,0.01085698,110350.0,110340.0,1.52070769]
[1756454451731,0.01083743,110350.0,110340.0,1.52070769]
[1756454452152,0.01083743,110350.0,110340.0,1.86070769]
[1756454452349,0.01083743,110350.0,110340.0,1.86270769]
[1756454453227,0.00879743,110350.0,110340.0,1.93564769]
[1756454454090,0.0004,110360.0,110350.0,0.54218032]
[1756454454291,0.00087796,110360.0,110350.0,2.84682119]
[1756454454466,0.00087796,110360.0,110350.0,1.84386643]
[1756454454849,0.00087796,110360.0,110350.0,2.84881119]
[1756454455422,0.00087796,110360.0,110350.0,2.89881119]
[1756454455623,0.00087796,110360.0,110350.0,2.90081119]
[1756454456219,0.00087796,110360.0,110350.0,3.25081119]
[1756454456423,0.00087796,110360.0,110350.0,3.30581119]
[1756454457174,0.0004,110380.0,110370.0,1.52615342]
[1756454457405,0.0004,110380.0,110370.0,1.6740896]
[1756454457562,0.00545,110380.0,110370.0,0.85424366]
[1756454457759,0.00545,110380.0,110370.0,1.85918842]
[1756454457977,0.00545,110380.0,110370.0,0.83330484]
[1756454458196,0.00545,110380.0,110370.0,0.65209618]
[1756454458397,0.00545,110380.0,110370.0,0.83326484]
[1756454458579,0.00545,110380.0,110370.0,0.83426484]
[1756454458945,0.00545,110380.0,110370.0,1.8392096]
[1756454459149,0.00545,110380.0,110370.0,1.8412096]
[1756454460377,0.00545,110380.0,110370.0,0.31505618]
[1756454460582,0.18664224,110380.0,110370.0,0.15093618]
[1756454460789,0.18664224,110380.0,110370.0,0.31497618]
[1756454460993,0.18664224,110380.0,110370.0,0.31517618]
[1756454461195,0.18664224,110380.0,110370.0,0.49638484]
[1756454461196,0.00545,110380.0,110370.0,0.49638484]
[1756454461472,0.00545,110380.0,110370.0,0.49538484]
[1756454461720,0.18117597,110390.0,110370.0,0.49538484]
[1756454461894,0.0015,110380.0,110370.0,0.49338484]
[1756454462301,0.0015,110380.0,110370.0,0.49438484]
[1756454463117,0.0015,110380.0,110370.0,0.49959484]
[1756454463339,0.0001433,110390.0,110380.0,0.18119224]
[1756454463539,0.0001433,110390.0,110380.0,0.47280359]
[1756454463738,0.0001433,110390.0,110380.0,0.49895241]
[1756454463979,0.0001433,110390.0,110380.0,1.50389717]
[1756454464599,0.0001433,110390.0,110380.0,0.49895241]
[1756454464824,0.0026433,110390.0,110380.0,0.49895241]
[1756454465236,0.0016433,110390.0,110380.0,0.49895241]
[1756454465459,0.0001433,110390.0,110380.0,1.50389717]
[1756454465895,0.0001433,110390.0,110380.0,0.49895241]
[1756454466128,0.00847923,110390.0,110380.0,0.50095241]
[1756454466388,0.00847923,110390.0,110380.0,1.50689717]
[1756454466585,0.00848323,110390.0,110380.0,1.91657717]
[1756454466801,0.0001433,110390.0,110380.0,1.91657717]
[1756454467281,0.00848641,110390.0,110380.0,1.91657717]
[1756454467631,0.0001433,110390.0,110380.0,1.91657717]
[1756454469763,0.0001433,110390.0,110380.0,1.75249717]
[1756454469962,0.0001433,110390.0,110380.0,1.93601717]
[1756454469963,0.00849109,110390.0,110380.0,1.93601717]
[1756454470182,0.00849109,110390.0,110380.0,0.93107241]
[1756454470386,0.00849109,110390.0,110380.0,1.93601717]
[1756454471799,0.00849109,110390.0,110380.0,1.93605717]
[1756454472020,0.00849109,110390.0,110380.0,1.77249717]
[1756454472216,0.00849109,110390.0,110380.0,1.93617717]
[1756454474680,0.00849109,110390.0,110380.0,2.33617717]
[1756454475062,0.00849109,110390.0,110380.0,1.33123241]
[1756454475296,0.00849109,110390.0,110380.0,1.33107241]
[1756454475463,0.00999109,110390.0,110380.0,0.91009359]
[1756454475665,0.0004,110410.0,110390.0,0.52117583]
[1756454475868,0.0004,110410.0,110400.0,1.80629381]
[1756454476078,0.0004,110410.0,110400.0,0.79908456]
[1756454476706,0.0004,110410.0,110400.0,0.63560456]
[1756454476960,0.0019,110410.0,110400.0,0.79908456]
[1756454477333,0.0019,110410.0,110400.0,0.80308456]
[1756454477544,0.0019,110410.0,110400.0,0.84231959]
[1756454477945,0.0004,110410.0,110400.0,0.84231959]
[1756454478278,1.19197203,110440.0,110420.0,0.1811266]
[1756454478492,1.22826698,110440.0,110430.0,0.3435902]
[1756454478701,0.03643825,110440.0,110430.0,0.39016488]
[1756454478938,1.04138301,110440.0,110430.0,0.39016488]
[1756454479144,1.02457343,110440.0,110430.0,0.39016488]
[1756454479352,0.01962867,110440.0,110430.0,0.4784612]
[1756454479901,1.19567051,110450.0,110440.0,0.1800938]
[1756454480237,1.21248813,110450.0,110440.0,0.22609701]
[1756454480454,0.01681762,110450.0,110440.0,0.22609701]
[1756454480604,1.02176238,110450.0,110440.0,0.22609701]
[1756454480805,0.01681762,110450.0,110440.0,0.31439333]
[1756454480966,0.18106101,110460.0,110450.0,0.18107741]
[1756454481178,0.18106101,110460.0,110440.0,0.26839012]
[1756454481179,1.20282686,110460.0,110440.0,0.26839012]
[1756454481386,1.00694476,110450.0,110440.0,0.26938724]
[1756454481592,1.18802217,110450.0,110440.0,0.16316]
[1756454481791,1.18802217,110450.0,110420.0,0.06968]
[1756454481792,0.18109976,110440.0,110420.0,0.06968]
[1756454481992,0.19792105,110440.0,110430.0,0.16316]
[1756454482199,0.5960891,110440.0,110430.0,0.16316]
[1756454482399,0.53792105,110440.0,110430.0,0.16316]
[1756454482808,0.54423022,110440.0,110430.0,0.16316]
[1756454483010,1.54917498,110440.0,110430.0,0.16316]
[1756454483858,1.02807522,110440.0,110430.0,0.34653407]
[1756454484114,0.01682129,110440.0,110430.0,0.43765652]
[1756454484316,0.01682129,110440.0,110430.0,0.50651711]
[1756454484470,1.00494476,110450.0,110440.0,0.1810938]
[1756454484807,1.20285901,110450.0,110440.0,0.1810938]
[1756454485108,1.20285901,110450.0,110430.0,0.50142711]
[1756454485311,1.00494476,110440.0,110430.0,0.43256652]
[1756454485463,1.18603856,110440.0,110430.0,0.16316]
[1756454485661,1.18603856,110440.0,110430.0,0.1821102]
[1756454486018,0.1811102,110430.0,110420.0,0.0001433]
[1756454486223,1.20288972,110430.0,110420.0,0.0001433]
[1756454486835,1.20920202,110430.0,110420.0,0.0001433]
[1756454487214,1.20920007,110430.0,110420.0,0.0001433]
[1756454487586,0.20425531,110430.0,110420.0,0.0001433]
[1756454487868,1.21761706,110430.0,110420.0,0.0001433]
[1756454489736,1.25008502,110430.0,110420.0,0.0001433]
[1756454490192,1.25008502,110430.0,110420.0,0.1812699]
[1756454490387,1.21761706,110430.0,110420.0,0.1812699]
[1756454490622,1.03019456,110430.0,110420.0,0.23382694]
[1756454490770,1.03019456,110430.0,110420.0,0.30954776]
[1756454491191,0.0252498,110430.0,110420.0,0.39784408]
[1756454491646,0.0252498,110430.0,110420.0,0.39984408]
[1756454491849,0.04476917,110430.0,110420.0,0.39984408]
[1756454492013,0.02793597,110430.0,110420.0,0.39984408]
[1756454492217,0.044792,110430.0,110420.0,0.40184408]
[1756454492443,0.02793597,110430.0,110420.0,0.40184408]
[1756454492814,0.0084166,110430.0,110420.0,0.40184408]
[1756454493228,1.34494476,110450.0,110440.0,0.1810938]
[1756454493426,0.38271233,110450.0,110440.0,0.3440538]
[1756454493628,1.38765709,110450.0,110440.0,0.3491438]
[1756454493933,1.37079352,110450.0,110440.0,0.3491438]
[1756454494133,1.38765814,110450.0,110440.0,0.3491438]
[1756454494341,1.38765814,110450.0,110440.0,0.3440538]
[1756454494761,1.04765814,110450.0,110440.0,0.3440538]
[1756454494967,1.04765814,110450.0,110440.0,0.3461438]
[1756454495300,0.03638954,110450.0,110440.0,0.48335797]
[1756454497249,0.03638954,110450.0,110440.0,0.48535797]
[1756454497562,1.00534476,110470.0,110460.0,0.18106101]
[1756454497715,1.04805933,110470.0,110460.0,0.34374101]
[1756454497901,1.04805933,110470.0,110460.0,0.34883101]
[1756454498123,1.04805933,110470.0,110460.0,0.40138805]
[1756454498124,1.04173564,110470.0,110460.0,0.40138805]
[1756454498502,1.04173564,110470.0,110460.0,0.39629805]
[1756454499078,0.03679088,110470.0,110460.0,0.34374101]
[1756454499290,0.18108196,110450.0,110420.0,0.19318293]
[1756454499473,0.03639088,110450.0,110440.0,0.1810938]
[1756454499675,1.22241488,110450.0,110430.0,0.34642688]
[1756454499873,0.21747012,110450.0,110440.0,0.002]
[1756454500102,0.21747012,110450.0,110430.0,0.34642688]
[1756454500679,0.21747012,110450.0,110430.0,0.40893182]
[1756454501257,1.18603856,110440.0,110420.0,0.28162255]
[1756454501463,1.00494476,110430.0,110420.0,0.28162255]
[1756454501661,1.04133443,110430.0,110420.0,0.27256622]
[1756454501875,1.04133443,110430.0,110420.0,0.43212622]
[1756454502365,1.04133443,110430.0,110420.0,0.43721622]
[1756454502563,1.04133443,110430.0,110420.0,0.50611497]
[1756454503153,1.02180795,110430.0,110420.0,0.50911497]
[1756454503356,1.02180795,110430.0,110420.0,0.51111497]
[1756454503572,1.02180795,110430.0,110420.0,0.50811497]
[1756454503770,1.02180795,110430.0,110420.0,0.50611497]
[1756454504233,1.02180795,110430.0,110420.0,0.50811497]
[1756454505063,0.01686319,110430.0,110420.0,0.51011497]
[1756454505263,1.03023194,110430.0,110420.0,0.51011497]
[1756454506394,1.02180795,110430.0,110420.0,0.51011497]
[1756454507939,1.02179421,110430.0,110420.0,0.51011497]
[1756454509006,0.01684945,110430.0,110420.0,0.51011497]
[1756454509182,1.03021913,110430.0,110420.0,0.51011497]
[1756454509389,1.02179421,110430.0,110420.0,0.51011497]
[1756454510063,0.01684945,110430.0,110420.0,0.51011497]
[1756454510264,1.34494476,110450.0,110440.0,0.18108519]
[1756454510465,1.37022608,110450.0,110440.0,0.34607519]
[1756454510779,0.02528132,110450.0,110440.0,0.43636151]
[1756454511442,0.0084271,110450.0,110440.0,0.43636151]
[1756454511834,0.02528696,110450.0,110440.0,0.43636151]
[1756454512270,0.0084271,110450.0,110440.0,0.43636151]
[1756454512472,1.00494476,110450.0,110440.0,0.50517176]
[1756454513696,1.18602217,110450.0,110430.0,0.1843002]
[1756454513913,0.20636814,110450.0,110430.0,0.27259652]
[1756454514153,0.20636814,110450.0,110440.0,0.1626]
[1756454514576,0.20636814,110450.0,110440.0,0.1646]
[1756454514971,0.20636814,110450.0,110440.0,0.3436938]
[1756454515428,1.2113129,110450.0,110440.0,0.3436938]
[1756454515949,1.2113129,110450.0,110440.0,0.1626]
[1756454516152,1.2113129,110450.0,110440.0,0.001]
[1756454516350,1.29960922,110450.0,110440.0,0.16252]
[1756454516673,1.2113129,110450.0,110440.0,0.16352]
[1756454517636,1.2113129,110450.0,110440.0,0.002]
[1756454518035,1.2113129,110450.0,110440.0,0.16328]
[1756454518242,1.20288733,110450.0,110440.0,0.16328]
[1756454518443,1.20288733,110450.0,110440.0,0.002]
[1756454518444,1.2113197,110450.0,110440.0,0.002]
[1756454518643,1.29961602,110450.0,110440.0,0.16324]
[1756454518983,1.29961602,110450.0,110440.0,0.16224]
[1756454519215,1.30594181,110450.0,110440.0,0.16224]
[1756454519518,1.21764549,110450.0,110440.0,0.3433338]
[1756454519648,0.20637494,110450.0,110440.0,0.16224]
[1756454519843,1.2113197,110450.0,110440.0,0.16224]
[1756454520076,1.2113197,110450.0,110440.0,0.16324]
[1756454520802,1.03024229,110450.0,110440.0,0.3443338]
[1756454520975,1.03024229,110450.0,110440.0,0.3495138]
[1756454521307,1.21132651,110450.0,110440.0,0.40963911]
[1756454521507,1.21132651,110450.0,110440.0,0.3795138]
[1756454521758,1.0302491,110450.0,110440.0,0.3795138]
[1756454521910,0.02530434,110450.0,110440.0,0.3795138]
[1756454522107,0.02530434,110450.0,110440.0,0.46781012]
[1756454522319,0.00843237,110450.0,110440.0,0.46781012]
[1756454522628,0.00843237,110450.0,110440.0,0.53976506]
[1756454523025,1.18600588,110460.0,110450.0,0.18107741]
[1756454523227,1.21131884,110460.0,110450.0,0.18625741]
[1756454523804,0.02531296,110460.0,110450.0,0.18625741]
[1756454524027,0.00843767,110460.0,110450.0,0.18625741]
[1756454524237,1.01338243,110460.0,110450.0,0.18625741]
[1756454525434,0.00843767,110460.0,110450.0,0.18625741]
[1756454525638,1.01338243,110460.0,110450.0,0.18625741]
[1756454526007,1.19444344,110460.0,110450.0,0.18625741]
[1756454526411,1.01338243,110460.0,110450.0,0.18825741]
[1756454526685,1.01338243,110460.0,110450.0,0.25314616]
[1756454527521,0.00843272,110460.0,110450.0,0.25314616]
[1756454527723,1.01337748,110460.0,110450.0,0.25314616]
[1756454527923,0.00843272,110460.0,110450.0,0.25314616]
[1756454528293,1.01337748,110460.0,110450.0,0.25314616]
[1756454529929,0.00843272,110460.0,110450.0,0.25314616]
[1756454530137,1.19443849,110460.0,110450.0,0.25314616]
[1756454530549,1.01337748,110460.0,110450.0,0.25314616]
[1756454532142,1.00494476,110460.0,110450.0,0.25314616]
[1756454532408,1.19444057,110460.0,110450.0,0.25314616]
[1756454532605,1.19444057,110460.0,110450.0,0.18825741]
[1756454533214,1.01337956,110460.0,110450.0,0.18825741]
[1756454533654,0.0084348,110460.0,110450.0,0.18825741]
[1756454533831,1.01337956,110460.0,110450.0,0.18825741]
[1756454534031,1.00494476,110460.0,110450.0,0.18825741]
[1756454534295,1.00494476,110460.0,110450.0,0.25314616]
[1756454534469,0.18144499,110470.0,110460.0,0.18106101]
[1756454534666,0.1898737,110470.0,110460.0,0.34122101]
[1756454535370,0.00882871,110470.0,110460.0,0.34640101]
[1756454535803,1.01377347,110470.0,110460.0,0.34640101]
[1756454536099,0.0004,110470.0,110460.0,0.49450825]
[1756454537026,0.30141919,110500.0,110480.0,0.18101903]
[1756454537261,1.18595661,110490.0,110480.0,0.16327]
[1756454537464,0.18943918,110490.0,110480.0,0.16327]
[1756454537634,1.19438394,110490.0,110480.0,0.16008]
[1756454538042,1.19438288,110490.0,110480.0,0.34110824]
[1756454538458,1.19438288,110490.0,110480.0,0.16008]
[1756454538946,0.18943812,110490.0,110480.0,0.16008]
[1756454539147,1.19438288,110490.0,110480.0,0.16008]
[1756454539603,0.18102824,110480.0,110450.0,0.2637621]
[1756454539804,1.18598938,110470.0,110460.0,0.18406101]
[1756454539936,1.18598938,110470.0,110460.0,0.34414101]
[1756454540521,1.00494476,110470.0,110460.0,0.34609101]
[1756454540912,0.18102836,110480.0,110470.0,0.18104462]
[1756454541110,1.19440343,110480.0,110470.0,0.18603462]
[1756454541477,1.21126231,110480.0,110470.0,0.18603462]
[1756454541677,0.00843043,110480.0,110470.0,0.18603462]
[1756454541883,1.19440343,110480.0,110470.0,0.18603462]
[1756454542276,1.01337519,110480.0,110470.0,0.18603462]
[1756454542702,0.18945867,110480.0,110470.0,0.18603462]
[1756454543234,1.01337519,110480.0,110470.0,0.18603462]
[1756454543439,1.19440343,110480.0,110470.0,0.18603462]
[1756454543661,1.01337519,110480.0,110470.0,0.18603462]
[1756454544219,0.00843043,110480.0,110470.0,0.18603462]
[1756454544457,1.19440343,110480.0,110470.0,0.18603462]
[1756454544635,0.00843043,110480.0,110470.0,0.18603462]
[1756454545046,1.01337519,110480.0,110470.0,0.18603462]
[1756454545363,0.00843043,110480.0,110470.0,0.18603462]
[1756454545563,0.00843043,110480.0,110470.0,0.23874818]
[1756454545795,1.18595753,110490.0,110480.0,0.18102824]
[1756454546001,1.21124663,110490.0,110480.0,0.34581824]
[1756454546499,1.21124663,110490.0,110480.0,0.16479]
[1756454546681,1.21124663,110490.0,110480.0,0.1628]
[1756454547231,1.21124663,110490.0,110480.0,0.34382824]
[1756454547629,0.20630187,110490.0,110480.0,0.34581824]
[1756454547983,1.21124663,110490.0,110480.0,0.34581824]
[1756454548388,1.21124538,110490.0,110480.0,0.34581824]
[1756454548760,1.21224538,110490.0,110480.0,0.37581824]
[1756454549084,1.21224538,110490.0,110480.0,0.19479]
[1756454549295,1.21224538,110490.0,110480.0,0.1898]
[1756454549579,1.3005417,110490.0,110480.0,0.03]
[1756454549775,1.64686484,110490.0,110480.0,0.03]
[1756454551494,2.77969856,110490.0,110480.0,0.03]
[1756454551707,0.05213679,110490.0,110480.0,0.46371456]
[1756454551912,0.02628785,110490.0,110480.0,0.46371456]
[1756454552119,0.00942928,110490.0,110480.0,0.46371456]
[1756454552802,1.03317036,110490.0,110480.0,0.46371456]
[1756454553000,1.03317036,110490.0,110480.0,0.46471456]
[1756454553405,1.00888904,110490.0,110480.0,0.53635331]
[1756454553633,1.00888904,110490.0,110480.0,0.46571456]
[1756454554219,1.18990089,110490.0,110480.0,0.19639]
[1756454554427,1.18990089,110490.0,110480.0,0.032]
[1756454554623,1.54676361,110490.0,110480.0,0.032]
[1756454554831,0.63460017,110490.0,110480.0,0.032]
[1756454555206,1.64138187,110490.0,110480.0,0.031]
[1756454555418,1.72967819,110490.0,110480.0,0.03]
[1756454555791,1.74920587,110490.0,110480.0,0.03]
[1756454556637,1.75020587,110490.0,110480.0,0.03]
[1756454556838,1.90968587,110490.0,110480.0,0.03]
[1756454557379,1.75020587,110490.0,110480.0,0.03]
[1756454557582,0.57315347,110490.0,110480.0,0.03]
[1756454557836,1.73305323,110490.0,110480.0,0.03]
[1756454558530,1.71830201,110490.0,110480.0,0.03]
[1756454558722,1.73304329,110490.0,110480.0,0.03]
[1756454559091,1.70776009,110490.0,110480.0,0.03]